fUSD/lending_fUSD_20240103
["ID","MTS","AMOUNT","RATE_DAILY","PERIOD"]
[310013808,1704286248084,-1681.5571,0.00032434,2]
[310013809,1704286248094,-1706.4293,0.00032434,2]
[310013810,1704286248104,-1000.0,0.00032434,2]
[310013811,1704286248114,-5000.0,0.00032435,2]
[310013812,1704286248123,-646.82,0.00032459,2]
[310013813,1704286248133,-314.175571,0.00032477,2]
[310013814,1704286248142,-165.527654,0.00032477,2]
[310013815,1704286248152,-179.735954,0.00032477,2]
[310013816,1704286248162,-413.433208,0.00032477,2]
[310013817,1704286248172,-150.77520905,0.00032477,2]
[310013818,1704286248182,-234.40103,0.00032498,2]
[310013819,1704286248191,-2270.4296122,0.00032499,4]
[310013820,1704286248200,-8008.725963,0.000325,2]
[310013821,1704286248210,-2000.0,0.000325,3]
[310013822,1704286248220,-310.0,0.00032521,2]
[310013823,1704286248231,-400.0,0.00032521,2]
[310013824,1704286248241,-249.39139602,0.00032522,4]
[310013825,1704286248251,-301.20793522,0.00032522,2]
[310013826,1704286248260,-269.83626346,0.00032531,2]
[310013827,1704286248270,-229.94338678,0.00032531,4]
[310013828,1704286248280,-530.98245295,0.00032531,4]
[310013829,1704286248290,-234.78997094,0.00032531,4]
[310013830,1704286248300,-158.21861741,0.00032531,4]
[310013831,1704286248310,-1057.98752379,0.00032531,4]
[310013832,1704286248320,-3920.35158571,0.00032531,2]
[310013833,1704286248330,-210.92031935,0.00032531,4]
[310013834,1704286248340,-245.57329592,0.00032532,20]
[310013835,1704286248349,-650.14671211,0.00032532,4]
[310013836,1704286248359,-541.22410251,0.00032532,4]
[310013837,1704286248369,-11639.95476372,0.00032532,2]
[310013838,1704286248379,-403.22829154,0.00032532,4]
[310013839,1704286248389,-576.50989765,0.00032532,4]
[310013840,1704286248399,-2891.24890645,0.00032532,4]
[310013841,1704286248408,-220.26666446,0.00032532,4]
[310013842,1704286248419,-2770.37255743,0.00032532,4]
[310013843,1704286248429,-383.24855968,0.00032532,4]
[310013844,1704286248438,-937.43506641,0.00032532,4]
[310013845,1704286248447,-221.95741752,0.00032535,4]
[310013846,1704286248456,-151.0,0.00032542,4]
[310013847,1704286248469,-2204.62223661,0.00032547,4]
[310013848,1704286248480,-152.17,0.00032548,2]
[310013849,1704286248490,-264.1135013,0.0003255,2]
[310013850,1704286248500,-615.84802,0.0003255,2]
[310013851,1704286248510,-615.84802,0.0003255,2]
[310013852,1704286248520,-234.040103,0.00032558,2]
[310013853,1704286248530,-615.84803,0.0003259,2]
[310013854,1704286248540,-234.40103,0.00032598,2]
[310013855,1704286248550,-500.0,0.00032613,2]
[310013856,1704286248559,-615.84803,0.0003263,2]
[310013857,1704286248576,-937.85,0.0003263,2]
[310013858,1704286248591,-150.0,0.00032632,2]
[310013859,1704286248601,-468.080206,0.00032658,2]
[310013860,1704286248611,-1351.26829571,0.00032658,2]
[310013861,1704286248622,-615.84802,0.0003266,2]
[310013862,1704286248632,-181.58686236,0.00032676,4]
[310013863,1704286248642,-702.481236,0.00032758,2]
[310013864,1704286248654,-500.0,0.0003276,7]
[310013865,1704286248664,-500.0,0.0003276,7]
[310013866,1704286248674,-500.0,0.0003276,10]
[310013867,1704286248684,-199.94769981,0.0003276,2]
[310013868,1704286248694,-2130.0,0.00032767,4]
[310013869,1704286248703,-5000.0,0.0003277,2]
[310013870,1704286248713,-958.19413029,0.00032774,4]
[310013871,1704286248723,-580.24103794,0.00032774,4]
[310013872,1704286248735,-310.80558639,0.00032774,4]
[310013873,1704286248745,-341.66600463,0.00032774,4]
[310013874,1704286248755,-155.63045223,0.00032774,4]
[310013875,1704286248766,-1587.47955924,0.00032774,4]
[310013876,1704286248777,-155.55698571,0.00032774,4]
[310013877,1704286248787,-156.82188596,0.00032774,4]
[310013878,1704286248798,-4119.5772874,0.00032775,4]
[310013879,1704286248808,-162328.7385,0.00032776,2]
[310013880,1704286248819,-2055.6465,0.00032776,2]
[310013881,1704286248830,-15148.2731,0.00032776,2]
[310013882,1704286248840,-1000.0,0.00032776,2]
[310013883,1704286248851,-1260.2954,0.00032776,2]
[310013884,1704286248861,-5000.0,0.00032776,2]
[310013885,1704286248872,-250.0,0.00032776,2]
[310013886,1704286248882,-192.13629495,0.00032776,2]
[310013887,1704286248892,-3000.0,0.000328,2]
[310013888,1704286248902,-396.48690053,0.00032821,2]
[310013889,1704286248912,-259.84030075,0.00032821,2]
[310013890,1704286248922,-417.70941756,0.00032821,2]
[310013891,1704286248932,-948.21186792,0.00032823,3]
[310013892,1704286248942,-409.04208677,0.00032827,7]
[310013893,1704286248970,-409.53639049,0.00032827,7]
[310013894,1704286248982,-349.28369109,0.00032827,7]
[310013895,1704286248991,-198.26375068,0.00032827,7]
[310013896,1704286249000,-1156.16616774,0.00032827,3]
[310013897,1704286249013,-924.62199317,0.00032827,3]
[310013898,1704286249023,-3215.71943558,0.00032827,7]
[310013899,1704286249033,-500.57201479,0.00032827,3]
[310013900,1704286249043,-3559.46242087,0.00032827,7]
[310013901,1704286249053,-777.71931155,0.00032827,3]
[310013902,1704286249063,-289.29950179,0.00032827,3]
[310013903,1704286249073,-237.0171304,0.00032827,3]
[310013904,1704286249083,-1000.0,0.00032827,7]
[310013905,1704286249093,-152.17,0.00032831,2]
[310013906,1704286249103,-500.0,0.00032841,2]
[310013907,1704286249113,-490.87576478,0.00032855,4]
[310013908,1704286249122,-599.040102,0.00032858,2]
[310013909,1704286249132,-1612.81807955,0.0003286,2]
[310013916,1704286259286,5171.92285663,0.00022245,2]
[310013921,1704286295201,200.02029682,0.0002203,2]
[310013922,1704286315122,115231.49131937,0.0002239,2]
[310013923,1704286315542,17045.34306675,6.94e-05,2]
[310013924,1704286322256,3419.77664919,0.00022798,7]
[310013925,1704286326820,401.92454236,0.0002,2]
[310013926,1704286343144,1033.5646414,0.000285,120]
[310013928,1704286374871,3980.21414,0.00015,14]
[310013929,1704286375154,408.95039153,0.00022999,10]
[310013930,1704286389506,150.64132287,0.00022,2]
[310013931,1704286435526,986.81214543,0.00023,15]
[310013932,1704286435556,26593.27135132,0.00023,15]
[310013936,1704286552881,-3035.94965715,0.00022663,2]
[310013937,1704286552908,-300.35878783,0.00022663,2]
[310013938,1704286552931,-202.24308246,0.00022664,2]
[310013939,1704286552958,-1848.22696457,0.00022664,2]
[310013940,1704286552983,-10525.07510932,0.00022664,2]
[310013941,1704286553005,-3181.30577157,0.00022664,2]
[310013942,1704286553027,-207.9220019,0.00022665,2]
[310013943,1704286553052,-3173.95626439,0.00022665,2]
[310013944,1704286553076,-370.01108445,0.00022666,2]
[310013945,1704286553100,-1058.5073427,0.00022666,2]
[310013946,1704286553125,-2612.12944822,0.00022667,2]
[310013947,1704286553147,-969.1713,0.0002267,2]
[310013948,1704286553171,-150.0,0.00022766,2]
[310013949,1704286553193,-6748.0,0.0002277,2]
[310013950,1704286553219,-1969.24538308,0.000229,2]
[310013951,1704286553243,-446.41620398,0.000229,2]
[310013952,1704286553267,-278.47294506,0.000229,2]
[310013953,1704286553290,-793.92423089,0.000229,2]
[310013954,1704286553313,-389.65608894,0.000229,2]
[310013955,1704286553337,-196.45863676,0.000229,6]
[310013956,1704286553360,-264.32460036,0.000229,2]
[310013957,1704286553383,-872.40367765,0.000229,2]
[310013958,1704286553408,-406.24141872,0.000229,2]
[310013959,1704286565108,2692.67705836,0.00022078,2]
[310013960,1704286594174,201.0,0.00022382,2]
[310013961,1704286653106,3181.30577157,0.00022078,2]
[310013962,1704286655357,2468.0415723,0.00022308,2]
[310013963,1704286668776,-300.35878783,0.00022659,2]
[310013964,1704286668797,-155.0,0.0002266,2]
[310013965,1704286668817,-1653.63121375,0.0002266,2]
[310013966,1704286668837,-649.58417879,0.00022661,2]
[310013967,1704286668857,-207.9220019,0.00022661,2]
[310013968,1704286668877,-219.74614153,0.00022662,2]
[310013969,1704286668897,-6813.7576762,0.00022898,2]
[310013972,1704286827535,562.71790389,0.00020163,2]
[310013973,1704286828617,200.0,0.00022482,2]
[310013974,1704286840910,236.22,0.00022482,2]
[310013976,1704286886136,155.0,0.00022482,2]
[310013980,1704286893548,252.38416995,0.00022482,2]
[310013981,1704286893944,206.0,0.00022382,2]
[310013984,1704286904625,425.16,0.00021898,2]
[310013989,1704286924183,2705.0,0.0002181,2]
[310013994,1704286953762,201.0,0.00022399,2]
[310013995,1704286953802,208.55261342,0.00021898,2]
[310013996,1704286954287,225.09329172,0.00021898,2]
[310013997,1704286956622,399.20590115,0.00021241,2]
[310013998,1704286957319,385.80443705,0.00021898,2]
[310013999,1704286957409,5174.93664444,0.00021898,2]
[310014000,1704286960449,347.88201368,0.00021898,2]
[310014001,1704286960713,882.64748262,0.00021898,2]
[310014002,1704286969654,1004.97,0.00021807,2]
[310014005,1704286980700,828.32340983,0.00021898,2]
[310014008,1704286996770,156.42826009,0.00021807,2]
[310014009,1704286997519,870.19,0.00021779,2]
[310014011,1704287008275,259.77567468,0.000225,2]
[310014014,1704287050175,1042.84,0.00021742,2]
[310014016,1704287071305,150.0,0.00021741,2]
[310014017,1704287074417,224.94,0.00021918,2]
[310014018,1704287077457,561.58416031,0.00020163,2]
[310014021,1704287103078,167.41,0.00021897,2]
[310014022,1704287103365,167.41,0.00022277,2]
[310014030,1704287116529,170.37,0.00021739,2]
[310014031,1704287117917,500.0,0.00021739,2]
[310014032,1704287166075,153.55,0.00021985,2]
[310014033,1704287172361,2000.0,0.00021764,2]
[310014034,1704287173260,177.48161799,0.00021,2]
[310014035,1704287178173,163.43579325,0.00020999,2]
[310014036,1704287178283,155.0,0.00020999,2]
[310014037,1704287179948,155.0,0.00020715,2]
[310014038,1704287187940,478.13,0.0002168,2]
[310014039,1704287188692,250.0,0.0002168,2]
[310014042,1704287210364,166.62,0.00021734,2]
[310014043,1704287210772,166.62,0.00021848,2]
[310014044,1704287211058,166.62,0.00021963,2]
[310014045,1704287211475,166.62,0.00022077,2]
[310014046,1704287212073,166.62,0.00022191,2]
[310014047,1704287212493,166.62,0.00022306,2]
[310014048,1704287213063,166.62,0.0002242,2]
[310014049,1704287223286,10525.07510932,0.000225,2]
[310014050,1704287225259,218.0,0.00022399,2]
[310014051,1704287225296,155.0,0.000225,2]
[310014052,1704287226463,282.70272373,0.000225,2]
[310014053,1704287227091,3035.94965715,0.000225,2]
[310014054,1704287228386,155.0,0.000225,2]
[310014055,1704287228440,1762.794775,0.000225,2]
[310014056,1704287229347,513.94401011,0.000225,2]
[310014057,1704287229958,207.9220019,0.000225,2]
[310014058,1704287230894,2605.87309653,0.000225,2]
[310014059,1704287231931,155.965971,0.00020702,2]
[310014060,1704287232176,2130.95546807,0.000225,2]
[310014061,1704287240282,514.67974286,0.000225,2]
[310014062,1704287243968,241.7259282,0.000225,2]
[310014063,1704287244874,161.67633359,0.000225,2]
[310014064,1704287245158,523.02257823,0.000225,2]
[310014065,1704287245559,155.0,0.000225,2]
[310014066,1704287246432,155.0,0.000225,2]
[310014068,1704287248650,155.0,0.000225,2]
[310014069,1704287250420,1100.0,0.000224,8]
[310014070,1704287250671,500.0,0.00021697,2]
[310014071,1704287251214,155.0,0.000225,2]
[310014072,1704287252517,2200.0,0.000225,8]
[310014073,1704287252838,1058.5073427,0.000225,2]
[310014075,1704287254207,200.0,0.00021697,2]
[310014076,1704287254721,3300.0,0.000226,8]
[310014077,1704287255663,244.15022882,0.000225,2]
[310014078,1704287255756,3428.49431744,0.000225,4]
[310014079,1704287257144,756.56077596,0.000225,2]
[310014080,1704287257169,335.9581202,0.000225,2]
[310014081,1704287257203,4400.0,0.000227,8]
[310014082,1704287257239,155.0,0.000225,2]
[310014083,1704287258133,400.0,0.000225,2]
[310014084,1704287258331,155.0,0.000225,2]
[310014085,1704287258480,522.20683445,0.000225,2]
[310014086,1704287259007,5500.0,0.000228,8]
[310014087,1704287259205,362.98644778,0.000225,2]
[310014088,1704287260131,650.41931128,0.000225,2]
[310014089,1704287260198,3922.10081628,0.000225,2]
[310014090,1704287261151,1100.0,0.000229,8]
[310014091,1704287261719,202.61761696,0.000225,2]
[310014092,1704287262170,7211.54505564,0.000225,2]
[310014093,1704287262432,211.0113246,0.000225,2]
[310014094,1704287263500,220.37171058,0.000225,2]
[310014095,1704287263998,1133.536065,0.000225,2]
[310014097,1704287265488,157.0740485,0.000225,2]
[310014098,1704287265516,234.89015367,0.000225,2]
[310014099,1704287265563,620.21196217,0.000225,2]
[310014100,1704287265621,541.17477191,0.000225,2]
[310014101,1704287266467,155.0,0.000225,2]
[310014102,1704287267898,155.0,0.000225,2]
[310014103,1704287268473,18956.58157169,0.000225,2]
[310014104,1704287268911,1042.9001587,0.000225,2]
[310014105,1704287269083,6418.11723431,0.000225,2]
[310014106,1704287269774,259.33587571,0.000225,2]
[310014107,1704287270503,155.0,0.00022499,2]
[310014108,1704287271103,527.54543763,0.00022499,2]
[310014109,1704287271183,233.65624485,0.00022499,2]
[310014110,1704287272052,155.0,0.000225,2]
[310014111,1704287272101,2892.60523596,0.00022499,2]
[310014112,1704287274455,219.74614153,0.000225,2]
[310014113,1704287274798,155.0,0.000225,2]
[310014114,1704287276473,214.47459225,0.000225,2]
[310014117,1704287281562,620.21196217,0.00021602,2]
[310014118,1704287281679,5000.0,0.000225,2]
[310014119,1704287282391,2266.90857063,0.00021377,7]
[310014120,1704287282458,402.32583918,0.000225,2]
[310014122,1704287295469,155.0,0.000225,2]
[310014124,1704287301565,533.70835547,0.00021602,2]
[310014125,1704287301610,3035.94965715,0.000225,2]
[310014126,1704287303150,23900.0,0.00021791,2]
[310014127,1704287303994,1917.35,0.00021965,2]
[310014128,1704287304952,1762.794775,0.000225,2]
[310014129,1704287305832,513.94401011,0.000225,2]
[310014130,1704287305918,2605.87309653,0.000225,2]
[310014132,1704287308291,2312.47292618,0.000225,2]
[310014133,1704287311449,183.08243661,0.000225,2]
[310014136,1704287313490,27436.69292223,0.000225,2]
[310014137,1704287313604,3035.94965715,0.000225,2]
[310014138,1704287313775,201.0,0.00022443,2]
[310014139,1704287314067,200.0,0.00021787,2]
[310014140,1704287314467,207.9220019,0.000225,2]
[310014141,1704287314781,514.67974286,0.000225,2]
[310014142,1704287315252,2130.95546807,0.000225,2]
[310014143,1704287318484,241.7259282,0.000225,2]
[310014144,1704287319856,515.94049237,0.000225,2]
[310014145,1704287320946,1008.31053101,0.000225,2]
[310014146,1704287321802,554.02303171,0.000225,2]
[310014147,1704287321888,2605.87309653,0.000225,2]
[310014148,1704287322401,155.0,0.000225,2]
[310014149,1704287325259,335.9581202,0.000225,2]
[310014150,1704287326480,297.00906564,0.000225,2]
[310014151,1704287326650,400.0,0.000225,2]
[310014153,1704287328011,234.89015367,0.000225,2]
[310014154,1704287328304,924.13217332,0.000225,2]
[310014155,1704287329149,155.0,0.000225,2]
[310014156,1704287331697,2127.11278779,0.000225,2]
[310014157,1704287332784,605.13167914,0.000225,2]
[310014158,1704287333437,1042.9001587,0.000225,2]
[310014159,1704287333599,3035.94965715,0.000225,2]
[310014160,1704287334121,541.17477191,0.000225,2]
[310014161,1704287334478,240.78171517,0.000225,2]
[310014162,1704287336210,362.98644778,0.000225,2]
[310014163,1704287338406,155.0,0.000225,2]
[310014164,1704287339214,756.56077596,0.000225,2]
[310014165,1704287339242,416.15530922,0.000225,2]
[310014166,1704287340980,155.0,0.000225,2]
[310014167,1704287341327,803.07929635,0.000225,2]
[310014168,1704287344502,234.58960548,0.000225,2]
[310014169,1704287344658,400.0,0.000225,2]
[310014170,1704287344968,219.74614153,0.000225,2]
[310014171,1704287345183,156.1746743,0.000225,2]
[310014172,1704287345715,3922.10081628,0.000225,2]
[310014173,1704287347610,527.54543763,0.000225,2]
[310014174,1704287347933,543.93,0.00021794,2]
[310014175,1704287347984,157.0740485,0.000225,2]
[310014176,1704287348142,540.11655666,0.000225,2]
[310014177,1704287349430,482.32861798,0.000225,2]
[310014178,1704287350555,155.0,0.000225,2]
[310014179,1704287350956,402.32583918,0.000225,2]
[310014180,1704287351899,1715.60328692,0.000225,2]
[310014181,1704287353623,3035.94965715,0.000225,2]
[310014182,1704287354963,181.08059421,0.000225,2]
[310014183,1704287355224,756.56077596,0.000225,2]
[310014184,1704287356228,318.26201105,0.000225,2]
[310014185,1704287360971,219.74614153,0.000225,2]
[310014186,1704287361404,313.95,0.00021783,2]
[310014187,1704287361611,526.74388092,0.000225,2]
[310014188,1704287361756,518.46723905,0.000225,2]
[310014189,1704287362910,288.67453207,0.000225,2]
[310014191,1704287365987,157.0740485,0.000225,2]
[310014192,1704287368955,415.53517682,0.000225,2]
[310014193,1704287371220,759.35652743,0.000225,2]
[310014194,1704287372609,164.67576627,0.000225,2]
[310014196,1704287375625,3035.94965715,0.000225,2]
[310014198,1704287380964,219.74614153,0.000225,2]
[310014199,1704287385993,218.6895355,0.000225,2]
[310014201,1704287391785,182.97,0.00021756,2]
[310014202,1704287393620,3035.94965715,0.000225,2]
[310014209,1704287396976,260.34863519,0.000225,2]
[310014236,1704287408407,834.46,0.00019861,2]
[310014237,1704287408633,834.46,0.00022124,2]
[310014242,1704287412021,1000.0,0.00021778,2]
[310014246,1704287413617,1488.68005024,0.000225,2]
[310014313,1704287434080,-1432.18835877,0.00022501,2]
[310014322,1704287434210,-221.44285498,0.00022501,2]
[310014323,1704287434221,-1799.88583421,0.00022501,2]
[310014324,1704287434233,-956.88669112,0.00022501,2]
[310014325,1704287434246,-266.65572831,0.00022501,2]
[310014326,1704287434256,-150.0,0.00022501,2]
[310014327,1704287434265,-379.80969419,0.00022502,2]
[310014328,1704287434275,-437.62075522,0.00022502,2]
[310014329,1704287434287,-850.0667792,0.00022502,2]
[310014330,1704287434303,-1101.27211973,0.00022502,2]
[310014331,1704287434316,-5334.17336454,0.00022502,2]
[310014332,1704287434327,-254.88443846,0.00022502,2]
[310014333,1704287434337,-236.35688557,0.00022502,2]
[310014334,1704287434350,-32.01101894,0.00022502,2]
[310014335,1704287434361,-212.14384615,0.00022502,2]
[310014336,1704287434371,-155.90037049,0.00022502,2]
[310014337,1704287434381,-487.4101649,0.00022502,2]
[310014338,1704287434392,-492.99149758,0.00022502,2]
[310014339,1704287434402,-155.21495146,0.00022502,2]
[310014340,1704287434412,-157.94860015,0.00022502,2]
[310014341,1704287434422,-1430.36149518,0.00022502,2]
[310014342,1704287434432,-235.49080602,0.00022502,2]
[310014343,1704287434442,-196.39973243,0.00022502,2]
[310014344,1704287434452,-253.5598996,0.00022502,2]
[310014345,1704287434466,-155.6940561,0.00022502,2]
[310014347,1704287434478,-565.46161731,0.00022502,2]
[310014349,1704287434490,-178.46166177,0.00022502,2]
[310014351,1704287434501,-213.19033962,0.00022502,2]
[310014353,1704287434512,-230.25227354,0.00022502,2]
[310014355,1704287434523,-156.49626507,0.00022502,2]
[310014357,1704287434533,-180.58572291,0.00022502,2]
[310014358,1704287434543,-521.72821669,0.00022502,2]
[310014359,1704287434553,-331.16384592,0.00022502,2]
[310014363,1704287434564,-296.28921536,0.00022502,2]
[310014366,1704287434574,-345.62317242,0.00022502,2]
[310014368,1704287434584,-348.80623695,0.00022502,2]
[310014370,1704287434594,-820.72976077,0.00022502,2]
[310014373,1704287434604,-220.16161834,0.00022502,2]
[310014375,1704287434614,-260.81261785,0.00022502,2]
[310014377,1704287434626,-212.7828797,0.00022502,2]
[310014379,1704287434636,-3267.85672979,0.00022502,2]
[310014380,1704287434647,-340.33173018,0.00022502,2]
[310014381,1704287434656,-2889.89257694,0.00022502,2]
[310014382,1704287434666,-2170.18996934,0.00022502,2]
[310014383,1704287434676,-273.27397385,0.00022502,2]
[310014384,1704287434686,-155.0,0.00022502,2]
[310014385,1704287434697,-208.07293102,0.00022502,2]
[310014386,1704287434708,-324.2819283,0.00022502,2]
[310014387,1704287434718,-3203.40722497,0.00022502,2]
[310014389,1704287434728,-16713.83662006,0.00022502,2]
[310014391,1704287434737,-202.3767561,0.00022503,2]
[310014393,1704287434747,-3914.87122204,0.00022504,2]
[310014397,1704287434781,-513.504,0.00022504,2]
[310014400,1704287434799,-3621.68825698,0.00022504,2]
[310014419,1704287434975,502.48,0.00021796,2]
[310014558,1704287437560,-1505.52984001,0.00022504,2]
[310014560,1704287437572,-534.9125,0.00022504,2]
[310014563,1704287437584,-68772.87200949,0.00022504,2]
[310014565,1704287437594,-173.49916985,0.00022516,2]
[310014566,1704287437605,-269.58465252,0.00022516,2]
[310014567,1704287437615,-207.9701826,0.00022516,2]
[310014568,1704287437625,-88908.28956703,0.00022518,2]
[310014569,1704287437635,-166.62,0.00022535,2]
[310014570,1704287437644,-172.75471983,0.00022548,2]
[310014571,1704287437654,-510.66,0.00022548,2]
[310014572,1704287437663,-158.34877872,0.00022549,2]
[310014573,1704287437672,-794.73,0.00022549,2]
[310014574,1704287437682,-158.3487787,0.00022588,2]
[310014575,1704287437691,-499.99,0.00022588,2]
[310014576,1704287437701,-440.09,0.00022588,2]
[310014577,1704287437712,-576.71,0.00022588,2]
[310014579,1704287437985,-2898.17,0.00022588,2]
[310014580,1704287437995,-158.3487787,0.00022627,2]
[310014581,1704287438005,-417.95209149,0.00022644,2]
[310014582,1704287438015,-166.62,0.00022649,2]
[310014583,1704287438026,-155.0,0.00022653,2]
[310014584,1704287438035,-360.50761194,0.00022655,2]
[310014585,1704287438045,-155.04415099,0.00022655,2]
[310014586,1704287438054,-224.18598886,0.00022655,2]
[310014587,1704287438063,-194.70174193,0.00022655,2]
[310014588,1704287438073,-155.0,0.00022655,2]
[310014589,1704287438082,-626.31115223,0.00022655,2]
[310014590,1704287438091,-190.28616864,0.00022655,2]
[310014591,1704287438100,-208.02893137,0.00022655,2]
[310014593,1704287438110,-173.35515233,0.00022655,2]
[310014594,1704287438120,-156.84641106,0.00022655,2]
[310014596,1704287438130,-317.68758824,0.00022655,2]
[310014597,1704287438139,-181.77103563,0.00022655,2]
[310014599,1704287438149,-155.23446992,0.00022655,2]
[310014601,1704287438158,-233.34750866,0.00022655,2]
[310014603,1704287438168,-309.16657707,0.00022655,2]
[310014605,1704287438177,-382.96978774,0.00022655,2]
[310014607,1704287438186,-527.93506752,0.00022655,2]
[310014609,1704287438195,-188.7816118,0.00022655,2]
[310014611,1704287438205,-805.62368405,0.00022655,2]
[310014613,1704287438216,-155.0,0.00022655,2]
[310014615,1704287438225,-251.99880636,0.00022655,2]
[310014617,1704287438234,-155.0,0.00022655,2]
[310014619,1704287438244,-227.13305078,0.00022655,2]
[310014622,1704287438253,-155.0,0.00022655,2]
[310014625,1704287438262,-416.54397333,0.00022655,2]
[310014628,1704287438271,-264.88458416,0.00022655,2]
[310014631,1704287438280,-212.66020852,0.00022655,2]
[310014634,1704287438289,-155.0,0.00022655,2]
[310014636,1704287438298,-155.53571407,0.00022655,2]
[310014639,1704287438307,-330.99831407,0.00022655,2]
[310014642,1704287438316,-2770.37255743,0.00022655,2]
[310014647,1704287438328,-155.0,0.00022655,2]
[310014650,1704287438338,-403.22829154,0.00022655,2]
[310014652,1704287438347,-179.9008789,0.00022655,2]
[310014654,1704287438357,-176.47406261,0.00022655,2]
[310014656,1704287438366,-155.0,0.00022655,2]
[310014658,1704287438376,-279.68298451,0.00022655,2]
[310014660,1704287438385,-4471.5640939,0.00022655,2]
[310014662,1704287438395,-530.98245295,0.00022655,2]
[310014664,1704287438405,-158.0787597,0.00022655,2]
[310014666,1704287438415,-229.94338678,0.00022655,2]
[310014668,1704287438424,-248.12804319,0.00022655,2]
[310014670,1704287438434,-156.96140636,0.00022655,2]
[310014672,1704287438444,-160.05593525,0.00022655,2]
[310014674,1704287438453,-155.63228091,0.00022655,2]
[310014676,1704287438465,-161.18888351,0.00022655,2]
[310014678,1704287438474,-336.35995625,0.00022655,2]
[310014680,1704287438484,-206.59470294,0.00022655,2]
[310014682,1704287438494,-249.39139602,0.00022655,2]
[310014684,1704287438503,-204.26942165,0.00022655,2]
[310014686,1704287438513,-3316.86540737,0.00022655,2]
[310014688,1704287438522,-1040.98279535,0.00022655,2]
[310014690,1704287438532,-324.34951991,0.00022655,2]
[310014692,1704287438541,-1252.56346846,0.00022655,2]
[310014694,1704287438551,-234.34924419,0.00022655,2]
[310014696,1704287438561,-297.09968763,0.00022655,2]
[310014698,1704287438571,-155.0,0.00022655,2]
[310014700,1704287438581,-217.17335148,0.00022655,2]
[310014702,1704287438591,-269.83626346,0.00022655,2]
[310014704,1704287438601,-383.24855968,0.00022655,2]
[310014706,1704287438613,-541.22410251,0.00022655,2]
[310014708,1704287438622,-2616.62705344,0.00022656,2]
[310014710,1704287438632,-861.55,0.00022657,2]
[310014712,1704287438641,-167.41,0.00022657,2]
[310014714,1704287438651,-158.3487787,0.00022666,2]
[310014716,1704287438660,-153.55,0.00022675,2]
[310014718,1704287438669,-158.3487787,0.00022705,2]
[310014720,1704287438679,-1042.84,0.00022721,2]
[310014722,1704287438689,-158.3487787,0.00022744,2]
[310014724,1704287438701,-166.62,0.00022763,2]
[310014727,1704287438713,-158.3487787,0.00022783,2]
[310014729,1704287438723,-3098.14539406,0.00022796,2]
[310014731,1704287438732,-158.3487787,0.00022822,2]
[310014733,1704287438742,-169.66,0.00022832,2]
[310014735,1704287438751,-158.3487787,0.00022861,2]
[310014737,1704287438762,-166.62,0.00022878,2]
[310014739,1704287438771,-543.93,0.00022884,2]
[310014741,1704287438783,-1484.89380006,0.000229,2]
[310014743,1704287438794,-1791.5258815,0.000229,2]
[310014745,1704287438806,-186.09767938,0.000229,2]
[310014747,1704287438816,-158.3487787,0.000229,2]
[310014749,1704287438826,-29798.172,0.000229,2]
[310014751,1704287438835,-168.86859126,0.000229,2]
[310014753,1704287438844,-179.27453581,0.000229,2]
[310014755,1704287438854,-168.90705866,0.000229,2]
[310014757,1704287438864,-655.01,0.000229,2]
[310014759,1704287438874,-418.12,0.000229,2]
[310014761,1704287438885,-814.50547226,0.000229,2]